fUST/lending_fUST_20241208
["ID","MTS","AMOUNT","RATE_DAILY","PERIOD"]
[344604472,1733604650846,-536.45287672,0.00025753,2]
[344604473,1733604650855,-500.0,0.00025753,2]
[344604475,1733604650864,-500.0,0.00025753,2]
[344604477,1733604650873,-500.0,0.00025753,2]
[344604479,1733604650884,-500.0,0.00025753,2]
[344604481,1733604650893,-500.0,0.00025753,2]
[344604483,1733604650902,-500.0,0.00025753,2]
[344604485,1733604650911,-500.0,0.00025753,2]
[344604487,1733604650921,-478.06601052,0.00025753,2]
[344604488,1733604650930,-500.0,0.00025753,2]
[344604490,1733604650940,-500.0,0.00025753,2]
[344604492,1733604650949,-500.0,0.00025753,2]
[344604494,1733604650959,-500.0,0.00025753,2]
[344604496,1733604650968,-500.0,0.00025753,2]
[344604498,1733604650978,-500.0,0.00025753,2]
[344604499,1733604650987,-500.0,0.00025753,2]
[344604501,1733604650997,-500.0,0.00025753,2]
[344604503,1733604651007,-500.0,0.00025753,2]
[344604505,1733604651018,-672.51,0.00025753,2]
[344604507,1733604651027,-500.0,0.00025753,2]
[344604509,1733604651036,-514.38,0.00025753,2]
[344604511,1733604651045,-500.0,0.00025753,2]
[344604513,1733604651054,-500.0,0.00025753,2]
[344604515,1733604651063,-500.0,0.00025753,2]
[344604516,1733604651073,-500.0,0.00025753,2]
[344604518,1733604651082,-500.0,0.00025753,2]
[344604520,1733604651091,-559.394318,0.00025753,2]
[344604522,1733604651100,-500.0,0.00025753,2]
[344604524,1733604651111,-500.0,0.00025753,2]
[344604526,1733604651120,-500.0,0.00025753,2]
[344604528,1733604651129,-500.0,0.00025753,2]
[344604530,1733604651140,-500.0,0.00025753,2]
[344604531,1733604651150,-500.0,0.00025753,2]
[344604533,1733604651159,-500.0,0.00025753,2]
[344604535,1733604651169,-500.0,0.00025753,2]
[344604537,1733604651179,-500.0,0.00025753,2]
[344604539,1733604651188,-500.0,0.00025753,2]
[344604541,1733604651198,-564.7244474,0.00025753,2]
[344604543,1733604651207,-500.0,0.00025753,2]
[344604544,1733604651216,-613.93188941,0.00025753,2]
[344604546,1733604651226,-557.0248311,0.00025753,2]
[344604548,1733604651237,-500.0,0.00025753,2]
[344604550,1733604651246,-501.94,0.00025753,2]
[344604552,1733604651255,-500.0,0.00025753,2]
[344604554,1733604651265,-647.08,0.00025753,2]
[344604556,1733604651275,-500.0,0.00025753,2]
[344604558,1733604651284,-500.0,0.00025753,2]
[344604560,1733604651294,-746.14,0.00025753,2]
[344604562,1733604651304,-9475.98,0.00025753,2]
[344604563,1733604651313,-500.0,0.00025753,2]
[344604565,1733604651322,-684.81,0.00025753,2]
[344604567,1733604651331,-500.0,0.00025753,2]
[344604569,1733604651341,-1338.6,0.00025753,2]
[344604571,1733604651351,-500.0,0.00025753,2]
[344604573,1733604651360,-500.0,0.00025753,2]
[344604575,1733604651371,-500.0,0.00025753,2]
[344604577,1733604651381,-500.0,0.00025753,2]
[344604578,1733604651391,-669.51,0.00025753,2]
[344604580,1733604651401,-500.0,0.00025753,2]
[344604582,1733604651410,-500.0,0.00025753,2]
[344604584,1733604651420,-500.0,0.00025753,2]
[344604586,1733604651430,-567.81863228,0.00025753,2]
[344604588,1733604651439,-500.0,0.00025753,2]
[344604590,1733604651448,-6486.52,0.00025753,2]
[344604592,1733604651458,-500.0,0.00025753,2]
[344604601,1733604651549,-500.0,0.00025753,2]
[344604603,1733604651560,-613.1,0.00025753,2]
[344604605,1733604651569,-500.0,0.00025753,2]
[344604607,1733604651579,-500.0,0.00025753,2]
[344604609,1733604651588,-500.0,0.00025753,2]
[344604611,1733604651598,-500.0,0.00025753,2]
[344604613,1733604651608,-513.53,0.00025753,2]
[344604615,1733604651617,-860.53,0.00025753,2]
[344604616,1733604651627,-1115.99,0.00025753,2]
[344604618,1733604651638,-500.0,0.00025753,2]
[344604620,1733604651647,-1067.66,0.00025753,2]
[344604622,1733604651656,-526.38763152,0.00025753,2]
[344604624,1733604651665,-500.0,0.00025753,2]
[344604626,1733604651676,-770.68,0.00025753,2]
[344604628,1733604651686,-500.0,0.00025753,2]
[344604630,1733604651695,-500.0,0.00025753,2]
[344604632,1733604651705,-1055.0,0.00025753,2]
[344604634,1733604651714,-2135.01,0.00025753,2]
[344604635,1733604651724,-500.0,0.00025753,2]
[344604637,1733604651733,-879.74,0.00025753,2]
[344604639,1733604651743,-500.0,0.00025753,2]
[344604641,1733604651752,-500.0,0.00025753,2]
[344604643,1733604651761,-500.0,0.00025753,2]
[344604645,1733604651774,-373.92991456,0.00025753,2]
[344604647,1733604651783,-527.55,0.00025753,2]
[344604648,1733604651792,-1139.59,0.00025753,2]
[344604650,1733604651802,-500.0,0.00025753,2]
[344604652,1733604651813,-500.0,0.00025753,2]
[344604654,1733604651822,-500.0,0.00025753,2]
[344604656,1733604651832,-500.0,0.00025753,2]
[344604658,1733604651842,-507.86,0.00025753,2]
[344604660,1733604651852,-500.0,0.00025753,2]
[344604662,1733604651862,-1133.02,0.00025753,2]
[344604664,1733604651871,-500.0,0.00025904,2]
[344604666,1733604651880,-155.00000577,0.00025934,2]
[344604667,1733604651891,-511.95123529,0.00026,2]
[344604669,1733604651901,-602.88782768,0.00026,5]
[344604671,1733604651911,-6446.07590145,0.00026,2]
[344604673,1733604651920,-1662.06618809,0.00026,30]
[344604675,1733604651929,-500.0,0.00026027,2]
[344604677,1733604651939,-500.0,0.00026027,2]
[344604679,1733604651949,-505.76474931,0.00026027,2]
[344604681,1733604651958,-500.0,0.00026027,2]
[344604682,1733604651967,-500.0,0.00026027,2]
[344604684,1733604651976,-500.0,0.00026027,2]
[344604686,1733604651986,-500.0,0.00026027,2]
[344604688,1733604652001,-500.0,0.00026027,2]
[344604690,1733604652010,-500.0,0.00026027,2]
[344604692,1733604652020,-500.0,0.00026027,2]
[344604693,1733604652030,-500.0,0.00026027,2]
[344604694,1733604652040,-500.0,0.00026027,2]
[344604695,1733604652049,-500.0,0.00026027,2]
[344604696,1733604652059,-500.0,0.00026027,2]
[344604697,1733604652068,-500.0,0.00026027,2]
[344604698,1733604652077,-500.0,0.00026027,2]
[344604699,1733604652086,-500.0,0.00026027,2]
[344604700,1733604652095,-500.0,0.00026027,2]
[344604701,1733604652105,-500.0,0.00026027,2]
[344604702,1733604652114,-500.0,0.00026027,2]
[344604703,1733604652124,-672.51,0.00026027,2]
[344604704,1733604652136,-500.0,0.00026027,2]
[344604705,1733604652146,-514.38,0.00026027,2]
[344604706,1733604652156,-500.0,0.00026027,2]
[344604707,1733604652165,-500.0,0.00026027,2]
[344604708,1733604652175,-500.0,0.00026027,2]
[344604709,1733604652185,-500.0,0.00026027,2]
[344604710,1733604652195,-500.0,0.00026027,2]
[344604711,1733604652204,-500.0,0.00026027,2]
[344604712,1733604652214,-500.0,0.00026027,2]
[344604713,1733604652224,-500.0,0.00026027,2]
[344604714,1733604652234,-500.0,0.00026027,2]
[344604715,1733604652243,-500.0,0.00026027,2]
[344604716,1733604652253,-500.0,0.00026027,2]
[344604717,1733604652262,-500.0,0.00026027,2]
[344604718,1733604652272,-500.0,0.00026027,2]
[344604720,1733604652281,-500.0,0.00026027,2]
[344604721,1733604652290,-500.0,0.00026027,2]
[344604723,1733604652300,-500.0,0.00026027,2]
[344604725,1733604652310,-500.0,0.00026027,2]
[344604727,1733604652319,-501.94,0.00026027,2]
[344604729,1733604652329,-366.96724563,0.00026027,2]
[344604731,1733604652338,-647.08,0.00026027,2]
[344604733,1733604652348,-500.0,0.00026027,2]
[344604735,1733604652357,-500.0,0.00026027,2]
[344604737,1733604652366,-746.14,0.00026027,2]
[344604739,1733604652376,-9475.98,0.00026027,2]
[344604741,1733604652388,-598.41908871,0.00026027,2]
[344604743,1733604652398,-684.81,0.00026027,2]
[344604745,1733604652407,-500.0,0.00026027,2]
[344604747,1733604652417,-1338.6,0.00026027,2]
[344604749,1733604652427,-500.0,0.00026027,2]
[344604752,1733604652437,-469.94595441,0.00026027,2]
[344604754,1733604652447,-500.0,0.00026027,2]
[344604756,1733604652456,-500.0,0.00026027,2]
[344604758,1733604652466,-669.51,0.00026027,2]
[344604760,1733604652475,-500.0,0.00026027,2]
[344604762,1733604652485,-500.0,0.00026027,2]
[344604764,1733604652495,-500.0,0.00026027,2]
[344604766,1733604652504,-500.0,0.00026027,2]
[344604768,1733604652515,-6486.52,0.00026027,2]
[344604770,1733604652524,-500.0,0.00026027,2]
[344604772,1733604652534,-500.0,0.00026027,2]
[344604774,1733604652543,-613.1,0.00026027,2]
[344604776,1733604652553,-500.0,0.00026027,2]
[344604778,1733604652563,-500.0,0.00026027,2]
[344604780,1733604652572,-453.59715397,0.00026027,2]
[344604782,1733604652583,-500.0,0.00026027,2]
[344604784,1733604652592,-513.53,0.00026027,2]
[344604786,1733604652601,-860.53,0.00026027,2]
[344604788,1733604652611,-1115.99,0.00026027,2]
[344604790,1733604652620,-500.0,0.00026027,2]
[344604792,1733604652629,-1067.66,0.00026027,2]
[344604794,1733604652640,-500.0,0.00026027,2]
[344604796,1733604652649,-770.68,0.00026027,2]
[344604798,1733604652659,-500.0,0.00026027,2]
[344604800,1733604652669,-500.0,0.00026027,2]
[344604802,1733604652679,-1055.0,0.00026027,2]
[344604804,1733604652688,-2135.01,0.00026027,2]
[344604806,1733604652697,-500.0,0.00026027,2]
[344604808,1733604652707,-879.74,0.00026027,2]
[344604810,1733604652718,-500.0,0.00026027,2]
[344604812,1733604652728,-500.0,0.00026027,2]
[344604814,1733604652738,-500.0,0.00026027,2]
[344604816,1733604652747,-527.55,0.00026027,2]
[344604818,1733604652758,-1139.59,0.00026027,2]
[344604820,1733604652770,-500.0,0.00026027,2]
[344604822,1733604652780,-500.0,0.00026027,2]
[344604824,1733604652790,-500.0,0.00026027,2]
[344604826,1733604652799,-500.0,0.00026027,2]
[344604828,1733604652810,-507.86,0.00026027,2]
[344604830,1733604652820,-500.0,0.00026027,2]
[344604833,1733604652830,-168.394439,0.0002605,2]
[344604835,1733604652840,-1311.33075397,0.00026205,2]
[344604837,1733604652852,-587.0,0.0002624,2]
[344604839,1733604652862,-2500.0,0.00026292,3]
[344604841,1733604652871,-2500.0,0.00026301,3]
[344604843,1733604652880,-499.9,0.00026301,2]
[344604845,1733604652891,-501.95693217,0.00026301,2]
[344604847,1733604652901,-500.0,0.00026301,2]
[344604849,1733604652912,-500.0,0.00026301,2]
[344604851,1733604652922,-500.0,0.00026301,2]
[344604853,1733604652932,-500.0,0.00026301,2]
[344604855,1733604652941,-500.0,0.00026301,2]
[344604857,1733604652950,-500.0,0.00026301,2]
[344604859,1733604652960,-500.0,0.00026301,2]
[344604861,1733604652969,-500.0,0.00026301,2]
[344604863,1733604652979,-500.0,0.00026301,2]
[344604865,1733604652988,-500.0,0.00026301,2]
[344604867,1733604652998,-500.0,0.00026301,2]
[344604869,1733604653007,-500.0,0.00026301,2]
[344604871,1733604653017,-500.0,0.00026301,2]
[344604873,1733604653026,-500.0,0.00026301,2]
[344604875,1733604653036,-500.0,0.00026301,2]
[344604877,1733604653045,-500.0,0.00026301,2]
[344604879,1733604653055,-672.51,0.00026301,2]
[344604881,1733604653064,-500.0,0.00026301,2]
[344604883,1733604653073,-514.38,0.00026301,2]
[344604885,1733604653082,-500.0,0.00026301,2]
[344604887,1733604653092,-500.0,0.00026301,2]
[344604889,1733604653102,-500.0,0.00026301,2]
[344604891,1733604653111,-500.0,0.00026301,2]
[344604893,1733604653120,-500.0,0.00026301,2]
[344604895,1733604653130,-471.2156932,0.00026301,2]
[344604897,1733604653140,-525.44595063,0.00026301,2]
[344604899,1733604653149,-500.0,0.00026301,2]
[344604901,1733604653159,-500.0,0.00026301,2]
[344604903,1733604653168,-500.0,0.00026301,2]
[344604905,1733604653178,-500.0,0.00026301,2]
[344604907,1733604653187,-500.0,0.00026301,2]
[344604909,1733604653196,-500.0,0.00026301,2]
[344604911,1733604653205,-500.0,0.00026301,2]
[344604913,1733604653215,-500.0,0.00026301,2]
[344604915,1733604653225,-500.0,0.00026301,2]
[344604917,1733604653234,-500.0,0.00026301,2]
[344604919,1733604653244,-501.94,0.00026301,2]
[344604921,1733604653254,-647.08,0.00026301,2]
[344604923,1733604653263,-500.0,0.00026301,2]
[344604925,1733604653272,-500.0,0.00026301,2]
[344604927,1733604653282,-746.14,0.00026301,2]
[344604929,1733604653291,-9475.98,0.00026301,2]
[344604931,1733604653300,-684.81,0.00026301,2]
[344604933,1733604653310,-500.0,0.00026301,2]
[344604935,1733604653319,-1338.6,0.00026301,2]
[344604937,1733604653329,-500.0,0.00026301,2]
[344604947,1733604653413,-500.0,0.00026301,2]
[344604950,1733604653423,-500.0,0.00026301,2]
[344604951,1733604653432,-669.51,0.00026301,2]
[344604954,1733604653442,-500.0,0.00026301,2]
[344604956,1733604653451,-500.0,0.00026301,2]
[344604958,1733604653461,-500.0,0.00026301,2]
[344604959,1733604653470,-500.0,0.00026301,2]
[344604962,1733604653480,-6486.52,0.00026301,2]
[344604964,1733604653490,-500.0,0.00026301,2]
[344604966,1733604653499,-500.0,0.00026301,2]
[344604968,1733604653509,-613.1,0.00026301,2]
[344604970,1733604653519,-500.0,0.00026301,2]
[344604972,1733604653529,-500.0,0.00026301,2]
[344604973,1733604653539,-500.0,0.00026301,2]
[344604976,1733604653549,-513.53,0.00026301,2]
[344604978,1733604653559,-860.53,0.00026301,2]
[344604979,1733604653568,-1115.99,0.00026301,2]
[344604981,1733604653578,-500.0,0.00026301,2]
[344604983,1733604653588,-1067.66,0.00026301,2]
[344604985,1733604653597,-500.0,0.00026301,2]
[344604987,1733604653607,-770.68,0.00026301,2]
[344604990,1733604653617,-500.0,0.00026301,2]
[344604992,1733604653627,-385.78994675,0.00026301,2]
[344604994,1733604653636,-1055.0,0.00026301,2]
[344604996,1733604653646,-2135.01,0.00026301,2]
[344604998,1733604653655,-500.0,0.00026301,2]
[344605000,1733604653665,-879.74,0.00026301,2]
[344605002,1733604653676,-500.0,0.00026301,2]
[344605004,1733604653685,-500.0,0.00026301,2]
[344605006,1733604653695,-500.0,0.00026301,2]
[344605008,1733604653704,-527.55,0.00026301,2]
[344605010,1733604653713,-1139.59,0.00026301,2]
[344605012,1733604653723,-500.0,0.00026301,2]
[344605014,1733604653732,-500.0,0.00026301,2]
[344605016,1733604653741,-500.0,0.00026301,2]
[344605018,1733604653750,-500.0,0.00026301,2]
[344605020,1733604653760,-507.86,0.00026301,2]
[344605021,1733604653772,-500.0,0.00026301,2]
[344605023,1733604653781,-400.0,0.00026301,2]
[344605026,1733604653791,-660.0,0.00026384,2]
[344605028,1733604653801,-353.0,0.000264,12]
[344605029,1733604653812,-500.0,0.00026407,2]
[344605032,1733604653824,-150.201,0.0002643,2]
[344605033,1733604653834,-2261.16382647,0.00026447,2]
[344605036,1733604653845,-264.82,0.00026448,2]
[344605038,1733604653854,-1000.0,0.00026452,2]
[344605040,1733604653863,-168.394439,0.00026477,2]
[344605041,1733604653873,-1500.0,0.00026522,2]
[344605044,1733604653883,-1500.0,0.00026522,2]
[344605045,1733604653893,-500.0,0.00026575,2]
[344605048,1733604653903,-213.06,0.00026575,2]
[344605050,1733604653912,-500.0,0.00026575,2]
[344605051,1733604653921,-500.0,0.00026575,2]
[344605054,1733604653931,-500.0,0.00026575,2]
[344605056,1733604653941,-500.0,0.00026575,2]
[344605057,1733604653951,-500.0,0.00026575,2]
[344605060,1733604653961,-500.0,0.00026575,2]
[344605061,1733604653970,-500.0,0.00026575,2]
[344605064,1733604653980,-500.0,0.00026575,2]
[344605066,1733604653990,-500.0,0.00026575,2]
[344605067,1733604654000,-500.0,0.00026575,2]
[344605070,1733604654011,-500.0,0.00026575,2]
[344605072,1733604654020,-500.0,0.00026575,2]
[344605074,1733604654029,-500.0,0.00026575,2]
[344605076,1733604654039,-500.0,0.00026575,2]
[344605078,1733604654048,-672.51,0.00026575,2]
[344605080,1733604654057,-500.0,0.00026575,2]
[344605081,1733604654066,-514.38,0.00026575,2]
[344605084,1733604654077,-500.0,0.00026575,2]
[344605086,1733604654086,-500.0,0.00026575,2]
[344605088,1733604654095,-500.0,0.00026575,2]
[344605090,1733604654106,-500.0,0.00026575,2]
[344605091,1733604654116,-500.0,0.00026575,2]
[344605093,1733604654125,-510.63,0.00026575,2]
[344605096,1733604654136,-500.0,0.00026575,2]
[344605097,1733604654145,-500.0,0.00026575,2]
[344605099,1733604654154,-500.0,0.00026575,2]
[344605101,1733604654163,-500.0,0.00026575,2]
[344605103,1733604654173,-500.0,0.00026575,2]
[344605105,1733604654182,-500.0,0.00026575,2]
[344605107,1733604654191,-500.0,0.00026575,2]
[344605109,1733604654201,-500.0,0.00026575,2]
[344605112,1733604654211,-500.0,0.00026575,2]
[344605113,1733604654220,-501.94,0.00026575,2]
[344605116,1733604654230,-647.08,0.00026575,2]
[344605117,1733604654239,-500.0,0.00026575,2]
[344605120,1733604654249,-500.0,0.00026575,2]
[344605122,1733604654259,-746.14,0.00026575,2]
[344605123,1733604654269,-9475.98,0.00026575,2]
[344605125,1733604654278,-684.81,0.00026575,2]
[344605127,1733604654287,-500.0,0.00026575,2]
[344605129,1733604654298,-1338.6,0.00026575,2]
[344605131,1733604654308,-500.0,0.00026575,2]
[344605133,1733604654317,-500.0,0.00026575,2]
[344605135,1733604654327,-500.0,0.00026575,2]
[344605137,1733604654336,-669.51,0.00026575,2]
[344605139,1733604654345,-500.0,0.00026575,2]
[344605141,1733604654355,-500.0,0.00026575,2]
[344605143,1733604654364,-500.0,0.00026575,2]
[344605145,1733604654374,-500.0,0.00026575,2]
[344605147,1733604654383,-6486.52,0.00026575,2]
[344605149,1733604654393,-500.0,0.00026575,2]
[344605151,1733604654403,-500.0,0.00026575,2]
[344605153,1733604654413,-613.1,0.00026575,2]
[344605155,1733604654422,-500.0,0.00026575,2]
[344605157,1733604654432,-500.0,0.00026575,2]
[344605159,1733604654442,-500.0,0.00026575,2]
[344605161,1733604654451,-513.53,0.00026575,2]
[344605163,1733604654461,-860.53,0.00026575,2]
[344605165,1733604654470,-1115.99,0.00026575,2]
[344605167,1733604654480,-500.0,0.00026575,2]
[344605169,1733604654489,-1067.66,0.00026575,2]
[344605171,1733604654498,-500.0,0.00026575,2]
[344605173,1733604654507,-770.68,0.00026575,2]
[344605175,1733604654517,-500.0,0.00026575,2]
[344605177,1733604654527,-1055.0,0.00026575,2]
[344605179,1733604654537,-2135.01,0.00026575,2]
[344605181,1733604654547,-500.0,0.00026575,2]
[344605183,1733604654557,-879.74,0.00026575,2]
[344605185,1733604654566,-500.0,0.00026575,2]
[344605187,1733604654577,-500.0,0.00026575,2]
[344605189,1733604654586,-500.0,0.00026575,2]
[344605191,1733604654596,-527.55,0.00026575,2]
[344605193,1733604654605,-1139.59,0.00026575,2]
[344605195,1733604654615,-500.0,0.00026575,2]
[344605197,1733604654624,-500.0,0.00026575,2]
[344605199,1733604654633,-500.0,0.00026575,2]
[344605201,1733604654645,-500.0,0.00026575,2]
[344605203,1733604654654,-507.86,0.00026575,2]
[344605205,1733604654663,-160.0,0.0002658,3]
[344605207,1733604654674,-500.0,0.00026748,2]
[344605209,1733604654684,-1311.33075397,0.00026812,2]
[344605211,1733604654693,-500.0,0.00026849,2]
[344605213,1733604654702,-500.0,0.00026849,2]
[344605215,1733604654712,-418.95214605,0.00026849,2]
[344605217,1733604654722,-500.0,0.00026849,2]
[344605219,1733604654731,-500.0,0.00026849,2]
[344605221,1733604654740,-500.0,0.00026849,2]
[344605223,1733604654749,-500.0,0.00026849,2]
[344605225,1733604654758,-500.0,0.00026849,2]
[344605227,1733604654768,-500.0,0.00026849,2]
[344605229,1733604654780,-500.0,0.00026849,2]
[344605230,1733604654790,-500.0,0.00026849,2]
[344605232,1733604654800,-500.0,0.00026849,2]
[344605234,1733604654809,-500.0,0.00026849,2]
[344605236,1733604654820,-389.41298519,0.00026849,2]
[344605239,1733604654830,-500.0,0.00026849,2]
[344605241,1733604654840,-672.51,0.00026849,2]
[344605242,1733604654852,-500.0,0.00026849,2]
[344605244,1733604654862,-514.38,0.00026849,2]
[344605246,1733604654872,-578.89478525,0.00026849,2]
[344605248,1733604654882,-500.0,0.00026849,2]
[344605250,1733604654893,-500.0,0.00026849,2]
[344605252,1733604654903,-500.0,0.00026849,2]
[344605254,1733604654912,-500.0,0.00026849,2]
[344605256,1733604654923,-500.0,0.00026849,2]
[344605258,1733604654932,-500.0,0.00026849,2]
[344605260,1733604654942,-500.0,0.00026849,2]
[344605262,1733604654951,-500.0,0.00026849,2]
[344605264,1733604654960,-156.00442909,0.00026849,2]
[344605266,1733604654970,-248.14512872,0.00026849,2]
[344605268,1733604654980,-510.80125102,0.00026849,2]
[344605270,1733604654990,-500.0,0.00026849,2]
[344605272,1733604654999,-373.53199415,0.00026849,2]
[344605274,1733604655009,-501.94,0.00026849,2]
[344605276,1733604655019,-647.08,0.00026849,2]
[344605278,1733604655029,-500.0,0.00026849,2]
[344605280,1733604655039,-500.0,0.00026849,2]
[344605282,1733604655049,-746.14,0.00026849,2]
[344605284,1733604655059,-9475.98,0.00026849,2]
[344605292,1733604655140,-684.81,0.00026849,2]
[344605294,1733604655150,-500.0,0.00026849,2]
[344605296,1733604655160,-1338.6,0.00026849,2]
[344605298,1733604655169,-500.0,0.00026849,2]
[344605300,1733604655179,-241.47433917,0.00026849,2]
[344605302,1733604655188,-500.0,0.00026849,2]
[344605304,1733604655198,-669.51,0.00026849,2]
[344605306,1733604655208,-500.0,0.00026849,2]
[344605308,1733604655218,-500.0,0.00026849,2]
[344605310,1733604655228,-500.0,0.00026849,2]
[344605312,1733604655237,-500.0,0.00026849,2]
[344605314,1733604655246,-6486.52,0.00026849,2]
[344605316,1733604655255,-500.0,0.00026849,2]
[344605318,1733604655265,-472.15317122,0.00026849,2]
[344605320,1733604655275,-613.1,0.00026849,2]
[344605322,1733604655284,-500.0,0.00026849,2]
[344605324,1733604655294,-500.0,0.00026849,2]
[344605326,1733604655303,-500.0,0.00026849,2]
[344605328,1733604655313,-513.53,0.00026849,2]
[344605330,1733604655323,-860.53,0.00026849,2]
[344605332,1733604655333,-1115.99,0.00026849,2]
[344605334,1733604655342,-500.0,0.00026849,2]
[344605336,1733604655352,-1067.66,0.00026849,2]
[344605338,1733604655361,-500.0,0.00026849,2]
[344605340,1733604655371,-770.68,0.00026849,2]
[344605342,1733604655380,-500.0,0.00026849,2]
[344605344,1733604655391,-1055.0,0.00026849,2]
[344605346,1733604655400,-2135.01,0.00026849,2]
[344605348,1733604655410,-500.0,0.00026849,2]
[344605349,1733604655419,-879.74,0.00026849,2]
[344605350,1733604655428,-500.0,0.00026849,2]
[344605351,1733604655439,-500.0,0.00026849,2]
[344605352,1733604655449,-360.29955641,0.00026849,2]
[344605353,1733604655458,-527.55,0.00026849,2]
[344605354,1733604655468,-1139.59,0.00026849,2]
[344605355,1733604655477,-500.0,0.00026849,2]
[344605356,1733604655487,-500.0,0.00026849,2]
[344605357,1733604655497,-500.0,0.00026849,2]
[344605358,1733604655506,-500.0,0.00026849,2]
[344605359,1733604655515,-507.86,0.00026849,2]
[344605360,1733604655525,-587.0,0.00026901,2]
[344605361,1733604655534,-168.394439,0.00026904,2]
[344605362,1733604655543,-500.0,0.00026939,2]
[344605363,1733604655554,-1000.0,0.00026955,2]
[344605364,1733604655564,-500.0,0.00026973,2]
[344605365,1733604655573,-500.0,0.00026973,2]
[344605366,1733604655583,-500.95874668,0.00026973,2]
[344605367,1733604655592,-500.0,0.00026973,2]
[344605369,1733604655602,-500.0,0.00026973,2]
[344605371,1733604655612,-161.59976077,0.00026973,2]
[344605372,1733604655622,-323.14122132,0.00026973,2]
[344605374,1733604655632,-500.0,0.00026973,2]
[344605376,1733604655644,-180.05218627,0.00027,2]
[344605378,1733604655657,-78243.85806563,0.00027,2]
[344605381,1733604655667,-3619.18918067,0.00027,2]
[344605382,1733604655677,-500.0,0.00027123,2]
[344605384,1733604655686,-500.0,0.00027123,2]
[344605386,1733604655696,-500.0,0.00027123,2]
[344605388,1733604655705,-500.0,0.00027123,2]
[344605390,1733604655715,-500.0,0.00027123,2]
[344605392,1733604655724,-500.0,0.00027123,2]
[344605394,1733604655733,-500.0,0.00027123,2]
[344605396,1733604655743,-500.0,0.00027123,2]
[344605398,1733604655752,-500.0,0.00027123,2]
[344605400,1733604655762,-500.0,0.00027123,2]
[344605402,1733604655775,-500.0,0.00027123,2]
[344605404,1733604655785,-500.0,0.00027123,2]
[344605406,1733604655795,-500.0,0.00027123,2]
[344605408,1733604655804,-672.51,0.00027123,2]
[344605410,1733604655815,-500.0,0.00027123,2]
[344605412,1733604655825,-514.38,0.00027123,2]
[344605414,1733604655834,-500.0,0.00027123,2]
[344605416,1733604655846,-500.0,0.00027123,2]
[344605418,1733604655856,-557.87908181,0.00027123,2]
[344605420,1733604655865,-500.0,0.00027123,2]
[344605422,1733604655874,-500.0,0.00027123,2]
[344605424,1733604655884,-500.0,0.00027123,2]
[344605426,1733604655895,-500.0,0.00027123,2]
[344605428,1733604655906,-500.0,0.00027123,2]
[344605430,1733604655916,-311.66464807,0.00027123,2]
[344605432,1733604655925,-501.94,0.00027123,2]